[Event "NY Presidents Day IM-B 2024"]
[Site "New York"]
[Date "2024.02.20"]
[Round "9.6"]
[White "Lima, Darcy"]
[Black "Xu, Grant"]
[Result "1-0"]
[ECO "A70"]
[WhiteElo "2370"]
[BlackElo "2313"]
[Annotator "TA"]
[PlyCount "155"]
[EventDate "2024.02.14"]
[EventType "schev"]
[EventCountry "USA"]
[SourceTitle "playchess.com"]
[Source "ChessBase"]
[SourceQuality "1"]
[TimeControl "5400+30"]

{[%evp 54,155,250,219,154,112,122,121,129,97,115,128,102,64,104,81,95,95,158,158,220,0,0,0,95,103,157,157,157,157,157,98,150,150,154,143,140,141,168,168,168,168,168,168,168,168,168,168,168,168,168,168,168,168,168,168,168,168,168,0,168,168,168,168,168,168,168,168,168,168,240,240,594,535,1113,1112,1189,1164,1164,1104,1176,1064,1164,1180,756,975,974,949,974,894,2270,2384,2005,1906,6044,5575,29977,29976,29978,29977,29980,29979,29985,29975]} 1. d4 {[%emt 0:00:02]} g6 {[%emt 0:01:25]} 2. c4 {[%emt 0:00:08]} Bg7 {[%emt 0:00:03]} 3. e4 {[%emt 0:00:32]} c5 {[%emt 0:00:05]} 4. d5 {[%emt 0:00:04]} d6 {[%emt 0:00:05]} 5. Bd3 {[%emt 0:00:10]} Nf6 {[%emt 0:00:08]} 6. Nc3 {[%emt 0:00:05]} O-O {[%emt 0:00:09]} 7. h3 {[%emt 0:00:29]} e6 {[%emt 0:00:10]} 8. Nf3 {[%emt 0:00:09]} exd5 {[%emt 0:00:22]} 9. cxd5 {[%emt 0:00:10]} Re8 {[%emt 0:00:09]} 10. O-O {[%emt 0:00:46]} Na6 {[%emt 0:00:50]} 11. Re1 {[%emt 0:01:20]} Nc7 {[%emt 0:00:24]} 12. Bf4 {[%emt 0:01:44] A70: Benoni (Hauptsystem).} b5 {[%emt 0:04:03]} 13. a3 {[%emt 0:13:32]} Rb8 {[%emt 0:03:14]} 14. b4 $146 {[%emt 0:02:33]} ({Predecessor:} 14. Qd2 a5 15. e5 dxe5 16. Nxe5 Bd7 17. Nxd7 Rxe1+ 18. Rxe1 Qxd7 19. Bxb5 Rxb5 20. Bxc7 {½-½ Nazin,R-Anikeenko,A RUS-ch U16 Kaluga 1996}) 14... Nh5 {[%emt 0:09:59]} 15. Bg5 {[%emt 0:01:58]} Bf6 {[%emt 0:01:45]} 16. Bd2 {[%emt 0:15:42]} c4 {[%emt 0:05:01]} 17. Bf1 {[%emt 0:01:37]} a5 {[%emt 0:04:44]} 18. Qc2 {[%emt 0:03:14]} g5 {[%emt 0:02:00]} 19. g3 {[%emt 0:01:37]} h6 {[%emt 0:02:43]} 20. Rad1 {[%emt 0:05:33]} Bd7 {[%emt 0:01:07]} 21. Ne2 {[%emt 0:06:00]} Qc8 {[%emt 0:01:35]} 22. Kh2 {[%emt 0:00:15]} Rxe4 {[%emt 0:00:39]} 23. Nxg5 {[%emt 0:02:44]} hxg5 {[%emt 0:01:59]} 24. Qxe4 {[%emt 0:00:07]} Bf5 {[%emt 0:00:14]} 25. Qg2 {[%emt 0:00:49]} g4 {[%emt 0:06:40]} 26. hxg4 {[%emt 0:02:32]} Bxg4 {[%emt 0:00:06]} 27. f3 {[%emt 0:00:06]} Bd7 {[%emt 0:00:16]} 28. Bc3 {[%emt 0:09:12]} ({Viel schwächer ist} 28. bxa5 Nxd5 29. f4 Qc5) 28... axb4 {[%emt 0:00:57]} 29. axb4 {[%emt 0:00:02]} Qf8 {[%emt 0:02:08]} 30. Bxf6 {[%emt 0:04:41]} Nxf6 {[%emt 0:00:02]} 31. Nc3 {[%emt 0:00:07]} Qh6+ {[%emt 0:01:10]} 32. Kg1 {[%emt 0:00:09]} Ra8 {[%emt 0:00:19]} 33. Qf2 {[%emt 0:09:35]} Qg5 {[%emt 0:04:47]} 34. Bg2 {[%emt 0:01:12]} (34. Rd2 {wäre vielleicht verwirrender.} Ra3 35. Qd4 Nfe8 36. g4) 34... Ra3 {[%emt 0:01:13]} 35. Qd4 $1 {[%emt 0:01:35]} Rxc3 {[%emt 0:20:48]} ({Günstiger ist} 35... Nfe8) 36. Qxc3 $16 {[%emt 0:00:15]} Ncxd5 {[%emt 0:00:04]} (36... Nfxd5 $16 37. f4 Nxc3 38. fxg5 Nxd1 39. Rxd1 d5 40. Bxd5 Bf5) 37. Qd4 $2 {[%emt 0:06:07]} ({Weiss kommt nicht vorbei an} 37. f4 $1 $18 {[%cal Rf4g5]} Nxc3 38. fxg5 Nxd1 39. Rxd1 (39. gxf6 Nc3 $16)) 37... Qxg3 $11 {[%emt 0:00:20]} 38. Qf2 {[%emt 0:00:30]} Qxf2+ {[%emt 0:00:28]} (38... Qg5 $11) 39. Kxf2 $16 {[%emt 0:00:04]} Nxb4 {[%emt 0:00:05]} (39... Be6 $142) 40. Rxd6 $16 {[%emt 0:02:15]} Nd3+ {[%emt 0:00:25]} 41. Rxd3 $1 {[%emt 0:00:15]} cxd3 {[%emt 0:00:02] [#]} 42. Rd1 {[%emt 0:00:12]} (42. Bf1 $142 $1) 42... Be6 {[%emt 0:04:52]} ({Vorzuziehen ist} 42... Kf8) 43. Rxd3 $16 {[%emt 0:00:11]} b4 {[%emt 0:00:14]} 44. Rd4 {[%emt 0:01:01]} b3 {[%emt 0:00:28]} 45. Rb4 {[%emt 0:00:03]} Nd7 {[%emt 0:03:44]} 46. Bf1 {[%emt 0:01:25]} Ne5 {[%emt 0:02:15]} 47. Bb5 {[%emt 0:03:26]} Kg7 {[%emt 0:01:59]} 48. f4 {[%emt 0:03:38]} Ng6 {[%emt 0:05:08]} 49. Ba4 {[%emt 0:01:26]} Kf6 {[%emt 0:02:21]} 50. Kg3 {[%emt 0:00:47]} ({Lieber nicht} 50. Bxb3 Bxb3 51. Rxb3 Nxf4 $11) 50... Ne7 {[%emt 0:00:55]} 51. Bxb3 {[%emt 0:00:11]} Nc6 {[%emt 0:01:35] [#]} 52. Rb6 $1 {[%emt 0:00:23]} Nd4 {[%emt 0:00:08]} 53. Bd1 {[%emt 0:00:21]} Nf5+ {[%emt 0:02:22]} 54. Kf2 {[%emt 0:00:07]} Ke7 {[%emt 0:00:15]} 55. Rb7+ {[%emt 0:01:15]} Kf6 {[%emt 0:00:16]} 56. Rb6 {[%emt 0:00:10]} Ke7 $1 {[%emt 0:00:05]} 57. Bf3 {[%emt 0:00:15]} Nd6 {[%emt 0:00:26]} 58. Ra6 {[%emt 0:00:22]} Nf5 {[%emt 0:00:25]} 59. Be4 {[%emt 0:00:18]} Nd6 {[%emt 0:01:43]} 60. Bd3 {[%emt 0:00:07]} Nf5 {[%emt 0:03:50]} 61. Kf3 {[%emt 0:01:11]} Nd6 {[%emt 0:01:55]} (61... Kf6 {war einen Versuch wert.} 62. Ra5 Nd4+ 63. Ke3 Nf5+ 64. Kf2 Ne7) 62. Kg3 $18 {[%emt 0:00:28]} Nf5+ $2 {[%emt 0:01:16]} (62... f6 {ist zäher.} 63. Ra5 Bd7) 63. Kg4 $18 {[%emt 0:01:49]} Ne3+ {[%emt 0:00:15]} 64. Kg5 {[%emt 0:00:31]} Nd5 {[%emt 0:02:04]} 65. f5 {[%emt 0:00:56]} f6+ {[%emt 0:00:30]} 66. Kh6 {[%emt 0:00:12]} Bc8 {[%emt 0:00:42]} 67. Ra8 {[%emt 0:01:59]} Bd7 {[%emt 0:00:01]} 68. Kg7 {[%emt 0:00:14]} Nf4 {[%emt 0:00:48]} 69. Bc2 {[%emt 0:00:24]} Nh5+ {[%emt 0:00:30]} 70. Kh6 {[%emt 0:00:10]} Nf4 {[%emt 0:01:00]} 71. Ra1 {[%emt 0:02:31]} Nd5 {[%emt 0:00:24]} 72. Kg7 {[%emt 0:00:00]} Kd6 {[%emt 0:00:32]} 73. Re1 {[%emt 0:00:00]} Bc8 {[%emt 0:00:44]} 74. Be4 {[%emt 0:00:00]} Nc7 {[%emt 0:00:32]} 75. Kxf6 {[%emt 0:00:00]} Ne8+ {[%emt 0:00:05]} 76. Kg5 {[%emt 0:00:00]} Bd7 {[%emt 0:00:16]} 77. Bc2 {[%emt 0:00:07]} Nc7 {[%emt 0:00:07]} 78. Bb3 {[%emt 0:00:57]} 1-0